bitfinex-derivatives/quotes_BTCF0:USTF0_20251225
["timestamp","ask_amount","ask_price","bid_price","bid_amount"]
[1766681276694,0.07007,88294.0,88277.0,0.01]
[1766681276893,0.07007,88294.0,88273.0,0.01132]
[1766681276894,0.0113347,88286.0,88273.0,0.01132]
[1766681277099,0.0113347,88286.0,88273.0,0.04132]
[1766681277301,0.0113343,88289.0,88273.0,0.04132]
[1766681277602,0.0250899,88288.0,88273.0,0.03]
[1766681277898,0.0250899,88287.0,88273.0,0.03]
[1766681278099,0.0113343,88289.0,88273.0,0.03]
[1766681278400,0.02508555,88288.0,88273.0,0.03]
[1766681278602,0.0113343,88289.0,88273.0,0.03]
[1766681278790,0.02508416,88288.0,88273.0,0.03]
[1766681278990,0.0113343,88289.0,88273.0,0.03]
[1766681279198,0.02508417,88288.0,88273.0,0.03]
[1766681279503,0.0113343,88289.0,88273.0,0.03]
[1766681279703,0.02507974,88288.0,88273.0,0.03]
[1766681279900,0.0113343,88289.0,88273.0,0.03]
[1766681280204,0.02507974,88288.0,88273.0,0.03]
[1766681280404,0.0113343,88289.0,88273.0,0.03]
[1766681280604,0.02507865,88288.0,88273.0,0.03]
[1766681280904,0.0113343,88289.0,88274.0,0.01132]
[1766681281105,0.02507865,88288.0,88274.0,0.01132]
[1766681281404,0.0113343,88289.0,88274.0,0.01132]
[1766681281795,0.011334,88292.0,88274.0,0.0226562]
[1766681281996,0.02507496,88291.0,88274.0,0.0226562]
[1766681282196,0.02507496,88290.0,88274.0,0.0326562]
[1766681282399,0.011334,88292.0,88274.0,0.0326562]
[1766681282594,0.0250716,88291.0,88274.0,0.0326562]
[1766681282795,0.0250716,88290.0,88277.0,0.0113359]
[1766681282997,0.0113338,88293.0,88277.0,0.0113359]
[1766681283199,0.02520929,88292.0,88277.0,0.0113359]
[1766681283402,0.0113338,88293.0,88274.0,0.0226562]
[1766681283605,0.02520667,88292.0,88274.0,0.0326562]
[1766681283799,0.0113338,88293.0,88274.0,0.0326562]
[1766681284005,0.02520672,88292.0,88274.0,0.0326562]
[1766681284307,0.0113338,88293.0,88274.0,0.0326562]
[1766681284608,0.02520211,88292.0,88274.0,0.0326562]
[1766681284907,0.0113338,88293.0,88274.0,0.0326562]
[1766681285106,0.02520204,88292.0,88274.0,0.0326562]
[1766681285307,0.0113338,88293.0,88274.0,0.0326562]
[1766681285499,0.02520015,88292.0,88274.0,0.0326562]
[1766681285699,0.0113338,88293.0,88274.0,0.0326562]
[1766681285900,0.02519956,88292.0,88274.0,0.0326562]
[1766681286101,0.0113338,88293.0,88274.0,0.0326562]
[1766681286300,0.02519809,88292.0,88274.0,0.0326562]
[1766681286510,0.0113338,88293.0,88274.0,0.0326562]
[1766681286703,0.02519574,88292.0,88274.0,0.0326562]
[1766681286905,0.0113338,88293.0,88274.0,0.0326562]
[1766681287105,0.02519564,88292.0,88274.0,0.0326562]
[1766681287308,0.0113338,88293.0,88274.0,0.0326562]
[1766681287811,0.0113342,88291.0,88274.0,0.02132]
[1766681290907,0.0113337,88294.0,88274.0,0.02132]
[1766681291206,0.02519564,88293.0,88277.0,0.0113358]
[1766681291405,0.0113335,88296.0,88277.0,0.0113358]
[1766681291603,0.02519529,88295.0,88279.0,0.0113356]
[1766681291810,0.02519529,88294.0,88279.0,0.0113356]
[1766681292012,0.15316,88298.0,88279.0,0.0113356]
[1766681292306,0.03652869,88297.0,88279.0,0.0113356]
[1766681292512,0.02519539,88296.0,88279.0,0.0113356]
[1766681293915,0.02519539,88296.0,88281.0,0.0113353]
[1766681294613,0.02519539,88296.0,88282.0,0.01132]
[1766681295318,0.02519539,88295.0,88282.0,0.01132]
[1766681295522,0.02519539,88294.0,88282.0,0.01132]
[1766681295819,0.02519539,88293.0,88282.0,0.01132]
[1766681296024,0.02519539,88292.0,88282.0,0.01132]
[1766681296210,0.02519539,88291.0,88282.0,0.01132]
[1766681296407,0.15316,88298.0,88282.0,0.01132]
[1766681296621,0.02522118,88297.0,88282.0,0.01132]
[1766681296823,0.02522118,88296.0,88282.0,0.01132]
[1766681297020,0.02522118,88295.0,88282.0,0.01132]
[1766681297320,0.02522118,88294.0,88282.0,0.01132]
[1766681297510,0.02522118,88293.0,88282.0,0.01132]
[1766681297710,0.02522118,88292.0,88282.0,0.01132]
[1766681297915,0.02522118,88291.0,88282.0,0.01132]
[1766681298228,0.02522118,88290.0,88282.0,0.01132]
[1766681298429,0.15316,88298.0,88282.0,0.01132]
[1766681298726,0.02523337,88297.0,88282.0,0.01132]
[1766681298927,0.02523337,88296.0,88282.0,0.01132]
[1766681299226,0.02523337,88295.0,88282.0,0.01132]
[1766681299429,0.02523337,88294.0,88282.0,0.01132]
[1766681299612,0.02523337,88293.0,88282.0,0.01132]
[1766681299817,0.02523337,88292.0,88282.0,0.01132]
[1766681300018,0.02523337,88291.0,88282.0,0.01132]
[1766681300318,0.02523337,88290.0,88282.0,0.01132]
[1766681300525,0.02523337,88289.0,88282.0,0.01132]
[1766681300826,0.02523337,88288.0,88282.0,0.01132]
[1766681301026,0.0113333,88297.0,88282.0,0.01132]
[1766681301229,0.02525584,88296.0,88282.0,0.01132]
[1766681301423,0.02525584,88295.0,88282.0,0.01132]
[1766681301622,0.02525584,88294.0,88282.0,0.01132]
[1766681301925,0.02525584,88293.0,88282.0,0.01132]
[1766681302229,0.02525584,88292.0,88282.0,0.01132]
[1766681302420,0.02525584,88291.0,88282.0,0.01132]
[1766681302621,0.02525584,88290.0,88282.0,0.01132]
[1766681302822,0.02525584,88289.0,88282.0,0.01132]
[1766681303019,0.02525584,88288.0,88282.0,0.01132]
[1766681303219,0.02525584,88287.0,88282.0,0.01132]
[1766681303528,0.02525584,88286.0,88282.0,0.01132]
[1766681303729,0.02525584,88285.0,88282.0,0.01132]
[1766681304029,0.02525584,88284.0,88282.0,0.01132]
[1766681304329,0.0113333,88297.0,88282.0,0.01132]
[1766681304538,0.02526834,88296.0,88282.0,0.01132]
[1766681304833,0.02526834,88295.0,88282.0,0.01132]
[1766681305025,0.02526834,88294.0,88282.0,0.01132]
[1766681305225,0.02522834,88293.0,88282.0,0.01132]
[1766681305421,0.0113333,88297.0,88282.0,0.01132]
[1766681305830,0.11777267,88298.0,80947.0,1.0]
[1766681306020,0.07708951,88272.0,88225.0,0.0113425]
[1766681306226,0.07708951,88260.0,88243.0,0.0113401]
[1766681306529,0.15316,88259.0,88243.0,0.0413401]
[1766681310530,0.15316,88259.0,88245.0,0.0113398]
[1766681312330,0.00016991,88264.0,88248.0,0.0113395]
[1766681312538,0.00016991,88264.0,88251.0,0.0113392]
[1766681312842,0.0568,88263.0,88251.0,0.0113392]
[1766681317443,0.02773847,88262.0,88251.0,0.0113392]
[1766681317643,0.02773847,88261.0,88251.0,0.0113392]
[1766681317844,0.02773847,88260.0,88251.0,0.0113392]
[1766681318042,0.02773847,88259.0,88251.0,0.0113392]
[1766681318242,0.02773847,88258.0,88251.0,0.0113392]
[1766681318438,0.02773847,88257.0,88251.0,0.0113392]
[1766681318633,7e-08,88256.0,88251.0,0.0113392]
[1766681318828,0.0568,88263.0,88251.0,0.0113392]
[1766681319028,0.0568,88262.0,88247.0,0.0113396]
[1766681319929,0.00016991,88264.0,88240.0,0.0113406]
[1766681320135,1e-08,88264.0,88254.0,0.07708951]
[1766681320333,1e-08,88264.0,88253.0,0.0113389]
[1766681321042,1e-08,88264.0,88255.0,0.0113386]
[1766681321745,1e-08,88264.0,88252.0,0.011339]
[1766681321950,1e-08,88264.0,88240.0,0.07708951]
[1766681322245,1e-08,88264.0,88240.0,0.01]
[1766681322746,1e-08,88264.0,88240.0,0.08708951]
[1766681323945,0.0113377,88263.0,88245.0,0.0113399]
[1766681324239,0.0113377,88263.0,88245.0,0.0413399]
[1766681324445,1e-08,88264.0,88247.0,0.0113397]
[1766681325949,0.01133761,88264.0,88247.0,0.0113397]
[1766681327448,0.1532,88263.0,88247.0,0.0113397]
[1766681327652,0.0113384,88258.0,88240.0,0.0113405]
[1766681327847,0.0113384,88258.0,88240.0,0.0413405]
[1766681330539,0.07708951,88250.0,88240.0,0.03]
[1766681331145,0.07708951,88250.0,88238.0,0.00022643]
[1766681331354,0.0568,88252.0,88239.0,0.0113407]
[1766681331554,0.02766284,88251.0,88239.0,0.0213407]
[1766681331757,0.0568,88252.0,88241.0,0.0113404]
[1766681332053,0.0568,88252.0,88238.0,0.01156723]
[1766681332254,0.0568,88252.0,88238.0,0.04156723]
[1766681332553,0.0568,88252.0,88240.0,0.0113405]
[1766681334149,0.02770827,88251.0,88240.0,0.0113405]
[1766681334348,0.0113392,88251.0,88238.0,0.00022643]
[1766681334543,0.0277081,88250.0,88238.0,0.03022643]
[1766681334851,0.02770751,88249.0,88238.0,0.03]
[1766681335051,0.07708951,88250.0,88238.0,0.01]
[1766681335253,0.02770786,88249.0,88238.0,0.01]
[1766681335445,0.02770786,88248.0,88238.0,0.03]
[1766681335641,0.02770786,88247.0,88238.0,0.01]
[1766681335847,0.07708951,88250.0,88238.0,0.01]
[1766681336046,0.02773374,88249.0,88238.0,0.01]
[1766681336247,0.02773374,88248.0,88238.0,0.01]
[1766681336448,0.02773374,88247.0,88238.0,0.01]
[1766681336747,0.07708951,88250.0,88238.0,0.01]
[1766681336949,0.02773351,88249.0,88220.0,0.07708951]
[1766681337149,0.0568,88248.0,88228.0,0.1064]
[1766681337948,0.0568,88248.0,88232.0,0.0113416]
[1766681338259,8.621e-05,88247.0,88232.0,0.0413416]
[1766681340357,8.621e-05,88247.0,88234.0,0.0113413]
[1766681340563,8.621e-05,88247.0,88234.0,0.0413413]
[1766681341364,8.621e-05,88247.0,88234.0,0.03]
[1766681342055,8.621e-05,88247.0,88237.0,0.011341]
[1766681342357,8.621e-05,88247.0,88237.0,0.021341]
[1766681343765,8.621e-05,88247.0,88237.0,0.01]
[1766681346964,0.02777163,88246.0,88237.0,0.01]
[1766681347167,8.621e-05,88247.0,88237.0,0.01]
[1766681347560,8.621e-05,88247.0,88237.0,0.0213409]
[1766681347749,0.06097267,88262.0,88237.0,0.01]
[1766681348064,0.0113382,88259.0,88241.0,0.0113404]
[1766681348265,0.18097185,88258.0,88241.0,0.0113404]
[1766681348563,0.02777185,88257.0,88241.0,0.0113404]
[1766681348758,5.236e-05,88256.0,88241.0,0.0113404]
[1766681348965,0.02777185,88255.0,88241.0,0.0113404]
[1766681349171,0.08457185,88255.0,88241.0,0.0113404]
[1766681349465,0.02777185,88254.0,88241.0,0.0113404]
[1766681350969,0.05685236,88256.0,88243.0,0.0113402]
[1766681352357,0.06097267,88255.0,88231.0,0.0113417]
[1766681352558,0.06097267,88255.0,88231.0,0.0413417]
[1766681352865,0.11777267,88255.0,88243.0,0.0113402]
[1766681353564,0.11777267,88255.0,88244.0,0.01133]
[1766681353870,0.06097267,88254.0,88233.0,0.0113414]
[1766681354070,0.11777267,88255.0,88233.0,0.0413414]
[1766681354368,0.06097267,88254.0,88233.0,0.0413414]
[1766681354573,0.06097267,88254.0,88233.0,0.03]
[1766681354768,0.06097267,88252.0,88233.0,0.03]
[1766681355169,0.06097267,88251.0,88233.0,0.03]
[1766681355469,0.06097267,88252.0,88233.0,0.03]
[1766681356171,0.06097267,88251.0,88233.0,0.03]
[1766681358273,0.06097267,88251.0,88237.0,0.0113409]
[1766681358462,0.0568,88250.0,88237.0,0.0213409]
[1766681363075,0.02765342,88249.0,88237.0,0.0213409]
[1766681363276,0.02765342,88248.0,88237.0,0.0213409]
[1766681363477,0.02765342,88247.0,88237.0,0.0213409]
[1766681363668,0.02765342,88246.0,88237.0,0.0213409]
[1766681363868,0.02765342,88245.0,88237.0,0.0213409]
[1766681364068,0.02765342,88244.0,88237.0,0.0213409]
[1766681364269,0.0568,88250.0,88237.0,0.0213409]
[1766681364466,0.02765618,88249.0,88237.0,0.0213409]
[1766681364669,0.02765618,88248.0,88237.0,0.0213409]
[1766681364977,0.02765618,88247.0,88237.0,0.0213409]
[1766681365180,0.02765618,88246.0,88237.0,0.0213409]
[1766681365370,0.02765618,88245.0,88237.0,0.0213409]
[1766681365569,0.02765618,88244.0,88237.0,0.0213409]
[1766681365868,0.0568,88250.0,88237.0,0.0213409]
[1766681366069,0.02765697,88249.0,88237.0,0.0213409]
[1766681366272,0.02765697,88248.0,88237.0,0.0213409]
[1766681366570,0.02765697,88247.0,88237.0,0.0213409]
[1766681366768,5.236e-05,88256.0,88237.0,0.0213409]
[1766681366967,0.18085561,88255.0,88237.0,0.0213409]
[1766681367173,0.1532,88255.0,88237.0,0.0213409]
[1766681367880,0.1532,88255.0,88237.0,0.01]
[1766681368271,0.0113388,88254.0,88237.0,0.01]
[1766681369274,0.1532,88255.0,88237.0,0.01]
[1766681369481,0.0113388,88254.0,88237.0,0.01]
[1766681370178,0.0113391,88252.0,88237.0,0.01]
[1766681371179,0.1645388,88255.0,88237.0,0.01]
[1766681371679,0.011339,88253.0,88237.0,0.01]
[1766681372977,0.1532,88255.0,88237.0,0.01]
[1766681373681,0.0113388,88254.0,88237.0,0.01]
[1766681377589,0.1532,88255.0,88237.0,0.0213409]
[1766681377988,0.0113389,88254.0,88237.0,0.01]
[1766681378682,0.0113391,88252.0,88237.0,0.01]
[1766681378882,0.02747768,88251.0,88237.0,0.01]
[1766681379083,0.02747768,88250.0,88237.0,0.01]
[1766681379288,0.02747768,88249.0,88237.0,0.01]
[1766681379486,0.02747768,88248.0,88237.0,0.01]
[1766681379687,0.02747768,88247.0,88237.0,0.03]
[1766681379881,0.02747768,88246.0,88237.0,0.03]
[1766681380082,0.02747768,88245.0,88237.0,0.03]
[1766681380282,0.02747768,88244.0,88237.0,0.03]
[1766681380488,0.02747768,88243.0,88237.0,0.03]
[1766681380689,0.0113394,88250.0,88237.0,0.03]
[1766681380988,0.02747794,88249.0,88237.0,0.02]
[1766681381193,0.02747794,88248.0,88237.0,0.01512]
[1766681381395,0.02747794,88247.0,88237.0,0.01512]
[1766681381690,0.02747794,88246.0,88237.0,0.01512]
[1766681381889,0.02747794,88245.0,88237.0,0.01512]
[1766681382090,0.02747794,88244.0,88237.0,0.01512]
[1766681382290,0.02747794,88243.0,88237.0,0.01512]
[1766681382492,0.0113392,88251.0,88237.0,0.01512]
[1766681382694,0.02747914,88250.0,88237.0,0.01512]
[1766681382991,0.02747914,88249.0,88230.0,0.0113418]
[1766681383193,0.02747914,88248.0,88230.0,0.0413418]
[1766681383394,0.02747914,88247.0,88230.0,0.0413418]
[1766681383584,0.02747914,88246.0,88230.0,0.0413418]
[1766681383785,0.02747914,88245.0,88230.0,0.0413418]
[1766681383985,0.0113392,88251.0,88230.0,0.0413418]
[1766681383986,0.02747914,88244.0,88230.0,0.0413418]
[1766681384292,0.02747914,88243.0,88230.0,0.03]
[1766681384492,5.236e-05,88242.0,88223.0,0.002267]
[1766681384691,5.236e-05,88242.0,88223.0,0.02]
[1766681384692,0.02747914,88241.0,88223.0,0.02]
[1766681384992,0.0113408,88239.0,88223.0,0.01]
[1766681385192,0.08427914,88238.0,88223.0,0.01]
[1766681385388,0.02747914,88237.0,88223.0,0.01]
[1766681385584,0.02747914,88236.0,88223.0,0.0213428]
[1766681385786,5.236e-05,88242.0,88223.0,0.01]
[1766681386094,0.0964,88239.0,88223.0,0.01]
[1766681386293,0.06108093,88282.0,88239.0,0.0113406]
[1766681386488,0.00226545,88283.0,88255.0,0.0113386]
[1766681386489,0.04924,88274.0,88255.0,0.0113386]
[1766681386796,0.0113361,88276.0,88255.0,0.0113386]
[1766681386993,0.05684,88274.0,88252.0,0.011339]
[1766681387190,0.00016991,88272.0,88254.0,0.00016991]
[1766681387586,0.01150651,88272.0,88254.0,0.00016991]
[1766681387787,0.00016991,88272.0,88254.0,0.00016991]
[1766681387987,0.0113375,88265.0,88243.0,0.0113402]
[1766681388198,0.0113377,88263.0,88243.0,0.0413402]
[1766681388595,0.0113377,88263.0,88244.0,0.01133]
[1766681388793,0.011338,88261.0,88244.0,0.01133]
[1766681389192,0.0681776,88264.0,88220.0,0.0113432]
[1766681389400,0.00016991,88251.0,88232.0,0.0113415]
[1766681389590,0.15324,88250.0,88232.0,0.0113415]
[1766681389986,0.00016991,88251.0,88232.0,0.0113415]
[1766681390296,0.05684,88249.0,88232.0,0.0113415]
[1766681390989,0.05684,88248.0,88232.0,0.0413415]
[1766681391190,0.00016991,88251.0,88240.0,0.0113405]
[1766681391505,0.15324,88256.0,88236.0,0.011341]
[1766681391691,0.0113387,88255.0,88236.0,0.011341]
[1766681392091,0.0113393,88251.0,88233.0,0.0113415]
[1766681392292,0.01150921,88251.0,88233.0,0.04151141]
[1766681392685,0.00016991,88251.0,88233.0,0.04151141]
[1766681394201,0.00016991,88251.0,88235.0,0.0113412]
[1766681394402,0.00016991,88251.0,88235.0,0.0413412]
[1766681394800,0.0113393,88250.0,88233.0,0.00016991]
[1766681395102,0.00016991,88251.0,88233.0,0.00016991]
[1766681395400,0.00016991,88251.0,88234.0,0.0113414]
[1766681397093,0.00016991,88251.0,88239.0,0.0113406]
[1766681397896,0.00016991,88251.0,88235.0,0.0113411]
[1766681398098,0.00016991,88251.0,88237.0,0.0113409]
[1766681399219,0.02620236,88250.0,88237.0,0.0113409]
[1766681399395,0.00016991,88251.0,88237.0,0.0113409]
[1766681399701,0.0964,88265.0,88243.0,0.0113402]
[1766681400003,0.1077375,88264.0,88239.0,0.0113406]
[1766681400202,0.1077375,88264.0,88239.0,0.0413406]
[1766681400403,0.0113379,88261.0,88239.0,0.03]
[1766681400803,0.00016991,88259.0,88241.0,0.00016991]
[1766681400999,0.0113384,88258.0,88241.0,0.00016991]
[1766681401202,0.00016991,88259.0,88241.0,0.00016991]
[1766681401393,0.0113348,88286.0,88241.0,0.03016991]
[1766681401592,0.0964,88282.0,88251.0,0.0113391]
[1766681401796,0.011336,88277.0,88253.0,0.0113388]
[1766681401997,0.011336,88277.0,88253.0,0.0413388]
[1766681402300,0.00016991,88274.0,88256.0,0.00016991]
[1766681402506,0.00016991,88274.0,88253.0,0.0113388]
[1766681402904,0.00016991,88274.0,88247.0,0.0964]
[1766681403103,0.00016991,88274.0,88247.0,0.1264]
[1766681403295,0.0113373,88266.0,88247.0,0.1264]
[1766681403604,0.0113377,88263.0,88248.0,0.00016991]
[1766681404698,0.0113377,88263.0,88247.0,0.0964]
[1766681404699,0.0113381,88260.0,88228.0,0.0113421]
[1766681405006,0.15324,88259.0,88234.0,0.0113413]
[1766681405206,0.0113392,88252.0,88234.0,0.0113413]
[1766681405708,0.01150911,88252.0,88234.0,0.01151121]
[1766681406004,0.0113394,88250.0,88234.0,0.01151121]
[1766681407008,0.0113394,88250.0,88234.0,0.00016991]
[1766681407314,0.0113399,88246.0,88234.0,0.00016991]
[1766681408206,0.0113401,88244.0,88234.0,0.00016991]
[1766681409710,0.0113398,88247.0,88234.0,0.00016991]
[1766681410410,0.01134,88245.0,88234.0,0.00016991]
[1766681411006,0.0113403,88243.0,88234.0,0.00016991]
[1766681411610,0.0113408,88239.0,88222.0,0.0113428]
[1766681411910,0.02480068,88238.0,88223.0,0.002267]
[1766681412112,0.02480068,88237.0,88223.0,0.032267]
[1766681412312,0.0113404,88242.0,88224.0,0.0113427]
[1766681412511,0.0113404,88242.0,88224.0,0.0413427]
[1766681412813,0.0113412,88236.0,88224.0,0.03]
[1766681413803,0.0113416,88233.0,88223.0,0.002267]
[1766681414105,0.0113416,88233.0,88219.0,0.0964]
[1766681414307,0.0964,88243.0,88219.0,0.1264]
[1766681414502,0.0113416,88233.0,88219.0,0.1264]
[1766681415004,0.0113417,88232.0,88214.0,0.0113439]
[1766681415199,0.01151171,88232.0,88214.0,0.03]
[1766681415404,0.01151171,88232.0,88216.0,0.0113436]
[1766681415604,0.01151171,88232.0,88216.0,0.0413436]
[1766681415804,0.011342,88230.0,88216.0,0.03]
[1766681415999,0.011342,88230.0,88213.0,0.0113441]
[1766681416000,0.107742,88230.0,88213.0,0.0113441]
[1766681416200,0.107742,88230.0,88213.0,0.0413441]
[1766681416713,0.107742,88230.0,88213.0,0.03]
[1766681417014,0.0113423,88228.0,88213.0,0.03]
[1766681417510,0.0964,88230.0,88213.0,0.03]
[1766681417709,0.0964,88230.0,88214.0,0.0113439]
[1766681417908,0.0964,88230.0,88214.0,0.0413439]
[1766681420818,0.0964,88230.0,88214.0,0.03]
[1766681421518,0.0113422,88228.0,88214.0,0.03]
[1766681424721,0.0964,88230.0,88214.0,0.03]
[1766681425520,0.0113424,88227.0,88214.0,0.03]
[1766681425921,0.0113426,88225.0,88214.0,0.03]
[1766681426509,0.011344,88214.0,88194.0,0.09662655]
[1766681426714,0.0113443,88212.0,88194.0,0.03022655]
[1766681426913,0.0113443,88212.0,88187.0,0.0964]
[1766681427124,0.0113443,88212.0,88187.0,0.1264]
[1766681427324,0.0113443,88212.0,88188.0,0.01133]
[1766681427523,0.0113443,88212.0,88188.0,0.04133]
[1766681427929,9.757e-05,88211.0,88188.0,0.04133]
[1766681428318,9.757e-05,88211.0,88192.0,0.0113467]
[1766681428628,9.757e-05,88211.0,88163.0,0.00226854]
[1766681428824,0.0113465,88195.0,88170.0,0.02]
[1766681429018,0.00017001,88191.0,88170.0,0.02]
[1766681429425,0.15336,88190.0,88170.0,0.02]
[1766681430042,0.15336,88190.0,88170.0,0.0313496]
[1766681430246,0.0113471,88190.0,88170.0,0.02]
[1766681430736,0.15336,88189.0,88170.0,0.02]
[1766681431129,0.0113471,88190.0,88164.0,0.0113503]
[1766681431335,0.15336,88189.0,88164.0,0.03]
[1766681431939,0.00017001,88191.0,88164.0,0.03]
[1766681432129,0.15336,88190.0,88164.0,0.03]
[1766681432334,0.0113479,88184.0,88164.0,0.03]
[1766681432638,0.0113473,88189.0,88164.0,0.03]
[1766681432840,0.15336,88188.0,88164.0,0.03]
[1766681433042,0.0113475,88187.0,88164.0,0.03]
[1766681434447,0.0113478,88184.0,88164.0,0.03]
[1766681434954,0.15336,88186.0,88164.0,0.03]
[1766681435945,0.00017001,88191.0,88164.0,0.0413503]
[1766681436335,0.05692,88190.0,88164.0,0.0413503]
[1766681436736,0.05692,88190.0,88167.0,0.0113499]
[1766681436936,0.00017001,88191.0,88168.0,0.09644]
[1766681437135,0.05692,88200.0,88179.0,0.0113484]
[1766681437331,0.05692,88202.0,88179.0,0.1377884]
[1766681437536,0.05692,88203.0,88182.0,0.011348]
[1766681437737,0.05692,88203.0,88182.0,0.03]
[1766681438235,0.00017011,88201.0,88184.0,0.00017011]
[1766681441441,0.00017011,88201.0,88184.0,0.00013011]
[1766681441949,0.00017011,88201.0,88185.0,0.0113476]
[1766681442948,0.02911767,88217.0,88185.0,0.0113476]
[1766681442949,0.05692,88208.0,88188.0,0.0113473]
[1766681443149,0.0113445,88211.0,88188.0,0.0413473]
[1766681443449,0.0113445,88211.0,88189.0,0.09644]
[1766681443839,0.00017011,88209.0,88189.0,0.09644]
[1766681444036,0.00017011,88209.0,88190.0,0.011347]
[1766681444241,0.00017011,88209.0,88189.0,0.09644]
[1766681444851,0.00017011,88209.0,88190.0,0.011347]
[1766681447855,0.00017011,88209.0,88190.0,0.041347]
[1766681449151,0.00017011,88209.0,88190.0,0.03]
[1766681449455,0.0113457,88201.0,88189.0,0.09644]
[1766681449648,0.0113457,88201.0,88189.0,0.11644]
[1766681450753,0.1647057,88201.0,88176.0,0.09644]
[1766681451058,0.0113472,88189.0,88171.0,0.09644]
[1766681451257,0.0113472,88189.0,88171.0,0.12644]
[1766681451460,0.0113478,88184.0,88171.0,0.12644]
[1766681451753,0.0113482,88182.0,88171.0,0.12644]
[1766681453549,0.0113482,88182.0,88171.0,0.03]
[1766681455158,0.0113491,88175.0,88163.0,0.00226854]
[1766681456049,0.0113497,88170.0,88157.0,0.0544]
[1766681456249,0.0113493,88173.0,88157.0,0.0844]
[1766681456550,0.02579403,88172.0,88157.0,0.0844]
[1766681456744,0.02579403,88171.0,88157.0,0.0844]
[1766681456947,0.0113493,88173.0,88157.0,0.0844]
[1766681457153,0.02579167,88172.0,88158.0,0.0113511]
[1766681457348,0.02579157,88171.0,88158.0,0.01]
[1766681457545,0.02579043,88170.0,88145.0,0.09648]
[1766681457759,0.12227043,88169.0,88145.0,0.09648]
[1766681457959,0.0113507,88162.0,88145.0,0.09648]
[1766681458156,0.02579043,88161.0,88146.0,0.0113527]
[1766681458360,0.02579043,88160.0,88146.0,0.0113527]
[1766681458562,0.02588175,88159.0,88146.0,0.0113527]
[1766681458760,9.132e-05,88159.0,88146.0,0.0113527]
[1766681458953,9.132e-05,88159.0,88139.0,0.05692]
[1766681459260,9.132e-05,88159.0,88146.0,0.0113526]
[1766681459559,0.02673501,88158.0,88146.0,0.02]
[1766681459758,0.02673501,88157.0,88146.0,0.02]
[1766681459960,9.132e-05,88159.0,88146.0,0.02]
[1766681460162,0.02673493,88158.0,88146.0,0.02]
[1766681460353,0.02673493,88158.0,88127.0,0.2412]
[1766681460354,0.0113515,88156.0,88106.0,0.00036908]
[1766681460554,0.02673493,88155.0,88133.0,0.03226931]
[1766681460757,0.02673493,88154.0,88133.0,0.03226931]
[1766681461064,0.02673493,88153.0,88133.0,0.03226931]
[1766681461254,0.02673493,88152.0,88133.0,0.03226931]
[1766681461452,0.09648,88157.0,88133.0,0.03226931]
[1766681461652,0.0267179,88156.0,88133.0,0.03226931]
[1766681461863,0.0267179,88155.0,88133.0,0.03226931]
[1766681462059,0.0267179,88154.0,88133.0,0.03226931]
[1766681462252,0.09648,88157.0,88135.0,0.011354]
[1766681462452,0.09648,88157.0,88135.0,0.041354]
[1766681462647,9.132e-05,88159.0,88135.0,0.03]
[1766681462847,1.32e-06,88159.0,88144.0,0.0113528]
[1766681463149,0.00017011,88168.0,88144.0,0.0113528]
[1766681463459,0.02703331,88167.0,88144.0,0.0113528]
[1766681463762,0.02703331,88166.0,88151.0,0.0113521]
[1766681463960,0.02703331,88165.0,88151.0,0.0113521]
[1766681464166,0.02703331,88164.0,88151.0,0.0113521]
[1766681464364,0.00017011,88168.0,88151.0,0.0113521]
[1766681464558,0.12350442,88167.0,88151.0,0.0113521]
[1766681464753,0.02702442,88166.0,88151.0,0.0113521]
[1766681465056,0.00017011,88168.0,88144.0,0.09648]
[1766681465258,0.02702298,88167.0,88151.0,0.0113519]
[1766681465450,0.00017011,88168.0,88151.0,0.0113519]
[1766681465647,0.06102328,88185.0,88151.0,0.0113519]
[1766681465648,0.0113486,88179.0,88151.0,0.03]
[1766681465848,0.15344,88178.0,88151.0,0.03]
[1766681466050,0.0743956,88179.0,88151.0,0.03]
[1766681466256,0.15344,88178.0,88151.0,0.03]
[1766681466655,0.00017011,88173.0,88156.0,0.00017011]
[1766681468266,0.0113494,88172.0,88156.0,0.00017011]
[1766681468461,0.0113494,88172.0,88156.0,0.03017011]
[1766681468661,0.09665011,88173.0,88156.0,0.00017011]
[1766681469157,0.00017011,88173.0,88156.0,0.00017011]
[1766681469358,0.15344,88172.0,88156.0,0.00017011]
[1766681469657,0.0113496,88171.0,88156.0,0.00017011]
[1766681471866,0.15344,88170.0,88144.0,0.09648]
[1766681472063,0.15344,88170.0,88144.0,0.12648]
[1766681472262,0.0113506,88163.0,88144.0,0.03]
[1766681473171,0.15344,88170.0,88144.0,0.03]
[1766681473865,0.0113507,88162.0,88144.0,0.03]
[1766681474071,0.0113507,88162.0,88145.0,0.0113528]
[1766681474270,0.0113507,88162.0,88145.0,0.0413528]
[1766681475268,0.0113503,88165.0,88147.0,0.0113525]
[1766681475967,0.0113506,88163.0,88147.0,0.0113525]
[1766681476172,0.15344,88170.0,88144.0,0.0113529]
[1766681476370,0.15344,88170.0,88144.0,0.0313529]
[1766681476764,0.0113506,88163.0,88146.0,0.0113526]
[1766681476961,0.0113508,88162.0,88146.0,0.0113527]
[1766681477663,0.02677469,88161.0,88146.0,0.0113527]
[1766681477863,0.02677469,88160.0,88146.0,0.0113527]
[1766681478067,0.02677469,88159.0,88146.0,0.0113527]
[1766681478270,0.02678766,88158.0,88146.0,0.0113527]
[1766681478467,0.02678766,88157.0,88146.0,0.0113527]
[1766681478667,0.0113508,88162.0,88146.0,0.0113527]
[1766681478867,0.02678767,88161.0,88146.0,0.0113527]
[1766681479070,0.02678767,88160.0,88146.0,0.0113527]
[1766681479268,0.02678767,88159.0,88146.0,0.0113527]
[1766681479476,0.02678767,88158.0,88143.0,0.011353]
[1766681479675,0.02678767,88157.0,88143.0,0.011353]
[1766681479982,0.02678767,88156.0,88143.0,0.041353]
[1766681480171,0.01222821,88159.0,88143.0,0.03]
[1766681480370,0.03817333,88158.0,88142.0,0.09648]
[1766681480673,0.0113515,88156.0,88138.0,0.0113537]
[1766681480975,0.0113517,88154.0,88138.0,0.0413537]
[1766681481176,0.02682213,88153.0,88140.0,0.0113534]
[1766681481378,0.00017011,88156.0,88140.0,0.0413534]
[1766681481379,0.026832,88152.0,88140.0,0.0413534]
[1766681481575,0.0113516,88155.0,88140.0,0.03]
[1766681481777,0.02683175,88154.0,88140.0,0.03]
[1766681481976,0.02683175,88153.0,88140.0,0.03]